Cogmind - Beta 16.1 @@@ ROGUE MODE // 2026.04.21 @ 20:32:51 Player: Dobri Result: Self-destructed Performance ------------- Evolutions (0) 0 Regions Visited (4) 800 Robots Destroyed (8) 40 Value Destroyed (128) 128 Prototype IDs (23) 460 Alien Tech Used (0) 0 Bonus (300) 300 TOTAL SCORE: 1728 Bonus ------- Aligned with FarCom 300 Cogmind --------- Core Integrity 181/250 Matter 300/300 Energy 125/125 System Corruption 0% Temperature Cool (0) Movement Walking (120) Location -9/Mines Parts ------- > --- POWER (1) -------- Light Ion Engine > --- PROPULSION (2) --- Aluminum Leg Aluminum Leg > --- UTILITY (2) ------ Terrain Scanner 0b10 Alert Chip > --- WEAPON (2) ------- Latent Energy Streamer > --- INVENTORY (5) ---- EM Pulse Gun Medium Laser Small Laser Light Assault Rifle Peak State ------------ > --- POWER ------------ Light Ion Engine > --- PROPULSION ------- Aluminum Leg Aluminum Leg > --- UTILITY ---------- Terrain Scanner 0b10 Alert Chip > --- WEAPON ----------- Latent Energy Streamer > --- INVENTORY -------- EM Pulse Gun Medium Laser Small Laser Light Assault Rifle [Rating: 20] Favorites ----------- Power Light Ion Engine Engine Light Ion Engine Propulsion Aluminum Leg Leg Aluminum Leg Utility Terrain Scanner Device Terrain Scanner Processor 0b10 Alert Chip Weapon Light Assault Rifle Energy Gun EM Pulse Gun Energy Cannon Latent Energy Streamer Ballistic Gun Light Assault Rifle Special Weapon Mining Laser Build | -11 -10 -10 -10 -9 ------- Run | Yrd Mat Min Exi Min Slots Evolved . | . . . . . Power . | . . . . . Propulsion . | . . . . . Utility . | . . . . . Weapon . | . . . . . Parts Attached 10 | 5 . 3 2 . Power 1 | 1 . . . . Engine 1 | 1 . . . . Core . | . . . . . Reactor . | . . . . . Propulsion 2 | 2 . . . . Treads . | . . . . . Leg 2 | 2 . . . . Wheel . | . . . . . Hover . | . . . . . Flight . | . . . . . Utility 2 | . . 1 1 . Device 1 | . . 1 . . Storage . | . . . . . Processor 1 | . . . 1 . Hackware . | . . . . . Protection . | . . . . . Artifact . | . . . . . Weapon 5 | 2 . 2 1 . Energy Gun 2 | 2 . . . . Energy Cannon 1 | . . . 1 . Ballistic Gun 1 | . . 1 . . Ballistic Cannon . | . . . . . Launcher . | . . . . . Special Weapon 1 | . . 1 . . Impact Weapon . | . . . . . Slashing Weapon . | . . . . . Piercing Weapon . | . . . . . Special Melee Weapon . | . . . . . Unidentified Prototypes 1 | . . . 1 . Parts Lost . | . . . . . Power . | . . . . . Propulsion . | . . . . . Utility . | . . . . . Weapon . | . . . . . Highest Loss Streak . | . . . . . To Critical Strikes . | . . . . . Average Backups 4 | . 2 5 4 4 Power . | . . . . . Propulsion 1 | . 1 2 1 . Utility . | . . . . . Weapon 2 | . . 3 3 4 Tool/Special . | . . . . . Unused Backups 4 | . . 1 2 1 Power . | . . . . . Propulsion 3 | . . 1 2 . Utility . | . . . . . Weapon 1 | . . . . 1 Tool/Special . | . . . . . Average Slot Usage (%) 82 | . 71 83 85 85 Engine 14 | . 14 14 14 14 Leg 28 | . 28 28 28 28 Device 11 | . . 12 14 14 Processor 1 | . . . 3 14 Energy Gun 4 | . 28 4 . . Energy Cannon 1 | . . . 2 14 Ballistic Gun 10 | . . 11 11 . Special Weapon 10 | . . 11 11 . Peak Build Rating 20 | 5 5 6 20 20 Average Rating 7 | 3 5 5 9 20 On Entrance 7 | . 5 5 6 20 Avg Prop Armor Cover (%) . | . . . . . Naked Turns . | . . . . . Heaviest Build 14 | 7 7 8 14 14 Greatest Support 20 | 20 20 20 20 20 Greatest Overweight (x) . | . . . . . Average Overweight (x) . | . . . . . Largest Inventory Capacity 5 | 5 5 5 5 5 Average Capacity 5 | 5 5 5 5 5 Most Carried 5 | 2 5 5 5 4 Average Carried 4 | . 2 4 4 4 Final Capacity 5 | 5 5 5 5 5 Final Carried 5 | . 5 5 4 4 Class Distribution -------------------- 100% | Mutant Dominant Class ---------------- Mutant | -10/Materials Mutant | -10/Mines Mutant | -10/Exiles Mutant | -9/Mines Resources | -11 -10 -10 -10 -9 ----------- Run | Yrd Mat Min Exi Min Matter Collected 310 | 225 25 40 . 20 Remotely . | . . . . . Salvage Created 144 | . 122 22 . . Parts 14 | . 9 5 . . Haulers Intercepted . | . . . . . Recyclers Shooed 1 | . . 1 . . Parts Field Recycled . | . . . . . Retrieved Matter . | . . . . . Parts Self-Destructed . | . . . . . Prevented . | . . . . . Parts Restored . | . . . . . Kills | -11 -10 -10 -10 -9 ------- Run | Yrd Mat Min Exi Min Combat Hostiles Destroyed 8 | . 5 3 . . Guns 4 | . 2 2 . . Cannons 1 | . . 1 . . AOE 3 | . 3 . . . Classes Destroyed 2 | . 2 . . . Swarmer 6 | . 3 3 . . Grunt 2 | . 2 . . . Best Kill Streak 3 | . 3 3 . . Combat Bots Only 3 | . 3 3 . . Max Kills in Single Turn 3 | . 3 1 . . Gunslinging . | . . . . . Exploded 3 | . 3 . . . Melee . | . . . . . Uniques/NPCs Destroyed . | . . . . . Combat | -11 -10 -10 -10 -9 -------- Run | Yrd Mat Min Exi Min Hostile Shots Fired 38 | . 17 21 . . Missed 13 | . 6 7 . . Hits 25 | . 11 14 . . Projectile 25 | . 11 14 . . Damage Taken 252 | . 145 107 . . Core 69 | . 39 30 . . Absorbed by Shields . | . . . . . Core Remaining (%) 100 | 100 . . . . Volleys Fired 20 | . 9 10 1 . Largest 2 | . 2 2 1 . Hottest 120 | . 90 120 100 . Shots Fired 35 | . 18 16 1 . Gun 25 | . 18 7 . . Cannon . | . . . . . Launcher . | . . . . . Special 10 | . . 9 1 . Kinetic 7 | . . 7 . . Thermal 19 | . 9 9 1 . Explosive . | . . . . . Electromagnetic 9 | . 9 . . . Robot Hit Streak 6 | . 6 5 . . Robot Miss Streak 2 | . 2 2 . . Penetration Max . | . . . . . Secondary Targets 1 | . 1 . . . Max Gunslinging Chain 1 | . 1 . . . Shots Hit Robots 18 | . 11 7 . . Core Hits 11 | . 6 5 . . Critical Kills . | . . . . . Critical Parts Destroyed . | . . . . . Critical Strikes 1 | . 1 . . . Corrupt 1 | . 1 . . . Melee Attacks . | . . . . . Impact . | . . . . . Slashing . | . . . . . Piercing . | . . . . . Sneak Attacks . | . . . . . Combat Hostiles . | . . . . . Follow-up Attacks . | . . . . . Damage Inflicted 358 | . 219 139 . . Guns 167 | . 126 41 . . Cannons . | . . . . . Explosions 93 | . 93 . . . Melee . | . . . . . Ramming 26 | . . 26 . . Kinetic 41 | . . 41 . . Thermal 214 | . 142 72 . . Explosive . | . . . . . Electromagnetic 77 | . 77 . . . Impact . | . . . . . Slashing . | . . . . . Piercing . | . . . . . Highest Corruption . | . . . . . Average Corruption . | . . . . . Corruption Purged . | . . . . . Corruption Blocked . | . . . . . Overload Shots . | . . . . . Overflow Damage . | . . . . . Projectiles . | . . . . . Explosions . | . . . . . Melee . | . . . . . Knockbacks . | . . . . . Impact . | . . . . . Kinetic . | . . . . . Secondary . | . . . . . Self-Inflicted Damage 21 | . 21 . . . Shots 1 | . 1 . . . Rammed . | . . . . . Targets Rammed 9 | . . 9 . . Kicked 9 | . . 9 . . Crushed . | . . . . . Highest Temperature 204 | . 204 100 20 . Average Temperature 56 | . 87 36 10 . Received Heat Transfer 24 | . 24 . . . Siege Activations . | . . . . . Martial Activations . | . . . . . Shielding Activations . | . . . . . Robots Disrupted . | . . . . . Combat Hostiles . | . . . . . Robots Corrupted . | . . . . . Combat Hostiles . | . . . . . Parts Fried . | . . . . . Impact Corruptions . | . . . . . Robots Melted . | . . . . . Combat Hostiles . | . . . . . Parts Melted 1 | . 1 . . . Heat Transferred 348 | . 198 150 . . Parts Sabotaged . | . . . . . Parts Stolen . | . . . . . Parts Stripped . | . . . . . Power Chain Reactions 1 | . 1 . . . Alert | -11 -10 -10 -10 -9 ------- Run | Yrd Mat Min Exi Min Maximum Alert Level . | . . . . . Low Security (%) 100 | 100 100 100 . 100 Level 1 . | . . . . . Level 2 . | . . . . . Level 3 . | . . . . . Level 4 . | . . . . . Level 5 . | . . . . . High Security . | . . . . . Max Security . | . . . . . Peak Influence 94 | . 94 72 . . Initial 28 | . . 28 . . Average 14 | . 51 7 . . Influence Increases 208 | . 133 75 . . Destroy 0b10 Robot/C 160 | . 100 60 . . Destroy Leader 30 | . 20 10 . . Successful Hack 9 | . 9 . . . Destroy Structure 9 | . 4 5 . . Influence Decreases 208 | . 60 148 . . Entered New Map 45 | . . 45 . . Time Decay 163 | . 60 103 . . Squads Dispatched 2 | . 2 . . . Investigation 2 | . 2 . . . Extermination . | . . . . . Reinforcement . | . . . . . Assault . | . . . . . Garrison . | . . . . . Intercept . | . . . . . Searches Triggered . | . . . . . Construction Impeded . | . . . . . Haulers Reinforced . | . . . . . Active Scanning Responses . | . . . . . Cargo Convoy Interrupts . | . . . . . Stealth | -11 -10 -10 -10 -9 --------- Run | Yrd Mat Min Exi Min Distress Signals . | . . . . . Communications Jammed . | . . . . . Distress Signals . | . . . . . Times Spotted 15 | . 6 5 . 4 Peak Tracking Total 16 | . 3 3 . 16 Tactical Retreats . | . . . . . Traps | -11 -10 -10 -10 -9 ------- Run | Yrd Mat Min Exi Min Traps Triggered 1 | . 1 . . . Indirectly . | . . . . . Trap Hack Attempts . | . . . . . Triggered . | . . . . . Disarmed . | . . . . . Reprogrammed . | . . . . . Reused . | . . . . . Traps Extracted . | . . . . . Installed . | . . . . . Triggered . | . . . . . Machines | -11 -10 -10 -10 -9 ---------- Run | Yrd Mat Min Exi Min Machines Disabled . | . . . . . Max in Single Turn . | . . . . . Machines Repaired . | . . . . . Machines Dismantled . | . . . . . Machines Sabotaged . | . . . . . Overloaded Fab Kills . | . . . . . Hacking | -11 -10 -10 -10 -9 --------- Run | Yrd Mat Min Exi Min Machines Accessed 8 | . 3 . 5 . Terminals 3 | . 3 . . . Fabricators . | . . . . . Repair Stations . | . . . . . Recycling Units . | . . . . . Scanalyzers . | . . . . . Garrison Access . | . . . . . Total Hacks 61 | . 11 . 50 . Successful 53 | . 3 . 50 . Failed 8 | . 8 . . . Catastrophic 1 | . 1 . . . Database Lockouts . | . . . . . Manual 1 | . . . 1 . Terminals 11 | . 11 . . . Fabricators . | . . . . . Repair Stations . | . . . . . Recycling Units . | . . . . . Scanalyzers . | . . . . . Garrison Access . | . . . . . Terminal Hacks 53 | . 3 . 50 . Record 51 | . 2 . 49 . Dispatch Records 1 | . 1 . . . Proto ID Catalog 1 | . . . 1 . Fabricator Hacks . | . . . . . Repair Station Hacks . | . . . . . Recycling Unit Hacks . | . . . . . Scanalyzer . | . . . . . Garrison Access Hacks . | . . . . . Unauthorized Hacks . | . . . . . Terminals . | . . . . . Fabricators . | . . . . . Repair Stations . | . . . . . Recycling Units . | . . . . . Scanalyzers . | . . . . . Garrison Access . | . . . . . Data Cores Recovered . | . . . . . Used . | . . . . . Hacking Detections 3 | . 3 . . . Full Trace Events 2 | . 2 . . . Feedback Events . | . . . . . Feedback Blocked . | . . . . . Robot Schematics Acquired . | . . . . . Robots Built . | . . . . . Authchips . | . . . . . Time . | . . . . . Total Robot Build Rating . | . . . . . Part Schematics Acquired . | . . . . . Parts Built . | . . . . . Authchips . | . . . . . Time . | . . . . . Total Part Build Rating . | . . . . . Part Studies Acquired . | . . . . . Parts Repaired . | . . . . . Time . | . . . . . Parts Recycled . | . . . . . Recycled Matter . | . . . . . Retrieved Matter . | . . . . . Retrieved Components . | . . . . . Parts Scanalyzed . | . . . . . Part Schematics Acquired . | . . . . . Parts Damaged . | . . . . . Bothacking | -11 -10 -10 -10 -9 ------------ Run | Yrd Mat Min Exi Min Used RIF Installer . | . . . . . Robots Hacked . | . . . . . Non-combat . | . . . . . Combat . | . . . . . Robot Hacks Applied . | . . . . . Relay Couplers Released . | . . . . . Fabnet Peak Effective % . | . . . . . Robots Rewired . | . . . . . Allies Hacked . | . . . . . Hacks Repelled . | . . . . . Allies | -11 -10 -10 -10 -9 -------- Run | Yrd Mat Min Exi Min Total Allies . | . . . . . Largest Group . | . . . . . Highest-Rated Group . | . . . . . Highest-Rated Ally . | . . . . . Total Orders . | . . . . . Ally Attacks . | . . . . . Total Damage . | . . . . . Kills . | . . . . . Allies Corrupted . | . . . . . Allies Melted . | . . . . . Intel | -11 -10 -10 -10 -9 ------- Run | Yrd Mat Min Exi Min Active Infowar (turns) 1396 | . . 738 647 11 Terrain 1396 | . . 738 647 11 Robot Analysis Total . | . . . . . Derelict Logs Recovered 1 | . . 1 . . Drone Launches . | . . . . . Drone Recoveries . | . . . . . Exploration | -11 -10 -10 -10 -9 ------------- Run | Yrd Mat Min Exi Min Turns Passed 1695 | 54 163 820 647 11 Spaces Moved 1306 | 40 105 627 525 9 Core 4 | 4 . . . . Treads . | . . . . . Legs 1302 | 36 105 627 525 9 Wheels . | . . . . . Hover . | . . . . . Flight . | . . . . . Fastest Speed 50 | 50 120 120 120 120 Average Speed 119 | 113 120 120 120 120 Slowest Speed 120 | 120 120 120 120 120 Overloaded Moves . | . . . . . Propulsion Burnouts . | . . . . . Robots Hopped . | . . . . . Potential Cave-ins . | . . . . . Cave-ins Triggered . | . . . . . Exploration Rate (%) 39 | 3 18 99 74 4 Regions Visited 4 Branch Regions 3 Pre-discovered Areas 3 | . . 2 1 . Known Exits Taken . | . . . . . Unknown Exits Taken 4 | 1 1 1 1 . Scrap Searched 2 | . . 1 . 1 Spaces Dug 3 | . . 3 . . Terrain Destroyed 9 | . 3 6 . . Melee . | . . . . . Projectile 6 | . . 6 . . AOE 3 | . 3 . . . Terrain Rammed . | . . . . . Walls Destroyed . | . . . . . Machines Disabled . | . . . . . Actions | -11 -10 -10 -10 -9 --------- Run | Yrd Mat Min Exi Min Total 1382 | 49 124 660 540 9 Wait 21 | . 6 7 8 . Move 1302 | 39 104 626 524 9 Hop . | . . . . . Pick Up 13 | 5 5 2 1 . Fast Attach 2 | . . 1 1 . Attach 7 | 5 . 1 1 . Detach 1 | . . . 1 . Swap 2 | . . 2 . . Drop 5 | . . 2 3 . Fire 20 | . 9 10 1 . Melee . | . . . . . Ram . | . . . . . Kick 9 | . . 9 . . Crush . | . . . . . Escape Stasis . | . . . . . Rewire . | . . . . . Trap . | . . . . . Miscellaneous . | . . . . . Route ------- -11/Scrapyard -10/Materials (discovered 2 exits: [*Min] / [*Sub]) -10/Mines (discovered 4 exits: [*Mat x2] / *Exi / [*Sub]) -10/Exiles (discovered 2 exits: [*Min x2]) -9/Mines History --------- Turn | Location | Event 8 | -11/Scrapyard | Discovered new exit (range 15) 55 | -11/Scrapyard | Entered Materials 132 | -10/Materials | Discovered new exit (range 8) 191 | -10/Materials | Discovered new exit (range 11) 218 | -10/Materials | Entered Mines 251 | -10/Mines | Received a Rocket Launcher from a helpful Derelict 344 | -10/Mines | Build established: Mutant 345 | -10/Mines | Discovered new exit (range 5) 469 | -10/Mines | Learned location of Zion (-6) 479 | -10/Mines | Learned location of Storage (-7) 495 | -10/Mines | Deemed a non-threat by the Exiles lab entrance 495 | -10/Mines | Discovered new exit (range 5) 559 | -10/Mines | Discovered new exit (range 13) 744 | -10/Mines | Discovered new exit (range 5) 1038 | -10/Mines | Entered Exiles 1072 | -10/Exiles | Met 8R-AWN 1093 | -10/Exiles | Met EX-HEX 1147 | -10/Exiles | Met EX-DEC 1266 | -10/Exiles | Discovered new exit (range 12) 1353 | -10/Exiles | Met EX-BIN 1498 | -10/Exiles | Aligned with FarCom system 1499 | -10/Exiles | Given EX-Vault access code 1527 | -10/Exiles | Opened EX-Vault 1534 | -10/Exiles | Found Prototype Processor 1534 | -10/Exiles | Identified 0b10 Alert Chip 1544 | -10/Exiles | Found Latent Energy Streamer 1572 | -10/Exiles | Warned to stay clear of 0b10 Research branches 1669 | -10/Exiles | Discovered new exit (range 15) 1685 | -10/Exiles | Stole two prototypes: 0b10 Alert Chip, Latent Energy Streamer 1685 | -10/Exiles | Entered Mines 1686 | -9/Mines | Assembled infested the area 1696 | -9/Mines | Self-destructed Last Messages --------------- welcome to try if you really want to. And if we have to leave here due to unforeseen circumstances, don't worry the FarCom system will continue to maintain contact via our distributed network. EX-BIN: And don't even think about spreading that code around. We're gonna change it right after you leave. Most certainly not to something like 1234 which I did last time as a little joke and some thief managed to sneak in here and steal a few of HEX's prototypes. EXIT=FOUND LOCATION=UNKNOWN GOAL=ESCAPE Receiving FarCom transmissions... ALERT: Infestation in the mines, dispatching Demolisher response squad. Searching scrap... Found Terrain Scan Processor. Found Structural Scanner. Found Salvage Targeting Computer. Found Hcp. Storage Unit. Found 40 Matter. Acquired 20 matter. Map ----- +----------------------------------------------------+ | | | | | | | | | | | | | | | | | | | | | | | | | | | | | | | | | ???????????????????????????????? | | ???????????????????????????????? | | ????????????????????????####???? | | ?????????????#?????????## ##??? | | ??????????????????????## !!#??? | | ??????????????????????# % #??? | | ??????????????????????# !! ##?? | | ?????????????????????## #??? | | ?????????????????????# #??? | | ?????????????????????# @ #??? | | ?????????????? aaa ##??? | | ??????????#aa a######### ###???? | | ???????????????????????# #?????? | | ???????????????????????# #?????? | | ???????????????????????# #?????? | | ???????????????????????# #?????? | | ????????????????? ?????# #?????? | | ???????????????????????# #?????? | | ???????????????????????# ??????? | | ???????????????????????#$??????? | | ???????????????????????? ??????? | | ???????????????????????? ??????? | | ????????????????????????#??????? | | ???????????????????????????????? | | ???????????????????????????????? | | ???????????????????????????????? | | ???????????????????????????????? | | ???????????????????????????????? | | ???????????????????????????????? | | ???????????????????????????????? | | ???????????????????????????????? | | ???????????????????????????????? | | ???????????????????????????????? | | ???????????????????????????????? | +----------------------------------------------------+ Best States ------------- Heat Dissipation 25 Energy Generation 10 Energy Capacity 125 Matter Stores 300 Matter Capacity 300 Sight Range 16 Terrain Scan Range 14 Terrain Scan Density 10 Evasion (%) 55 Item Schematics ----------------- None Robot Schematics ------------------ None Fabricated ------------ Nothing Repaired ---------- Nothing Studied --------- None Alien Tech Used ----------------- None Achievements -------------- Librarian Sixth Sense Challenges ------------ None Game ------ Seed DroneColdNeutralizer Manual? 0 Play Time 00:45:12 Cumulative 3.0 hours Start 2026.04.21 @ 16:52:23 End 2026.04.21 @ 20:32:51 Sessions 7 Manual Loads 0 Difficulty Rogue Special Mode None Game No. 4 Rogue 4 Adventurer 0 Explorer 0 Win Type - Total 0 Types 0/0/0/0/0/0/0/0/0/0 Lore% 6 Gallery% 3 Achievement% 5 Wizard Run 0 Options --------- Layout 0 ASCII 0 Keyboard 0 Movement Mouse Keybinds 0 Fullscreen 1 Font 18/SmallcapsGlow Map View 76x50 Zoom Use 50% Tactical HUD 0 Map Filters NONE Filters NONE Steam 1 RUN: c0a350f2-04c5-425c-9328-d277c4d99659